bitfinex/quotes_BTCUSD_20250522
["timestamp","ask_amount","ask_price","bid_price","bid_amount"]
[1747915300245,0.01979621,110930.0,110920.0,4.74834181]
[1747915300453,0.00176805,110930.0,110920.0,4.74934181]
[1747915300670,0.00176805,110930.0,110920.0,4.7776227]
[1747915301019,0.01078217,110930.0,110920.0,4.7768227]
[1747915301695,0.00176805,110930.0,110920.0,4.7768227]
[1747915301898,0.01078217,110930.0,110920.0,4.7768227]
[1747915302111,0.01078209,110930.0,110920.0,4.7768227]
[1747915302314,0.20853299,110940.0,110930.0,0.20733696]
[1747915302315,0.00121417,110940.0,110930.0,0.20733696]
[1747915302516,0.01022732,110940.0,110930.0,4.67706319]
[1747915303309,0.00121417,110940.0,110930.0,4.67706319]
[1747915303527,0.02903814,110950.0,110930.0,4.67706319]
[1747915303528,0.002,110950.0,110940.0,0.58437762]
[1747915303747,0.02903326,110970.0,110960.0,0.20728091]
[1747915303962,0.04705549,110970.0,110960.0,5.03800808]
[1747915304171,0.21827359,110970.0,110960.0,5.03800808]
[1747915304587,0.02903318,110970.0,110960.0,5.38701976]
[1747915304797,0.21841031,110970.0,110960.0,5.41513899]
[1747915305007,0.03179041,110980.0,110970.0,0.61046223]
[1747915305187,0.01100965,110990.0,110970.0,0.61046223]
[1747915305188,0.20922565,110990.0,110980.0,0.26143334]
[1747915305427,0.2182349,110990.0,110980.0,4.67727977]
[1747915305631,0.2182349,110990.0,110980.0,4.70431108]
[1747915305845,0.2182349,110990.0,110980.0,4.72233144]
[1747915306262,0.002,110990.0,110980.0,4.72233087]
[1747915306467,0.02001874,110990.0,110980.0,4.72233087]
[1747915306674,0.02001858,110990.0,110980.0,4.72233087]
[1747915306884,0.002,110990.0,110980.0,5.06233087]
[1747915307108,0.01100917,110990.0,110980.0,5.06233087]
[1747915307324,0.09357257,111010.0,111000.0,0.26980622]
[1747915307527,0.09357257,111010.0,111000.0,5.10133878]
[1747915307528,0.09372477,111010.0,111000.0,5.10133878]
[1747915307742,0.09372477,111010.0,111000.0,5.1577389]
[1747915308162,0.0021522,111010.0,111000.0,5.51102456]
[1747915308339,0.0021522,111010.0,111000.0,5.45462444]
[1747915308340,0.01115974,111010.0,111000.0,5.45462444]
[1747915308578,0.02016745,111010.0,111000.0,5.48290533]
[1747915308783,0.01115974,111010.0,111000.0,5.45462444]
[1747915308996,0.02016736,111010.0,111000.0,5.45462444]
[1747915309202,0.20933991,111010.0,111000.0,4.447267]
[1747915309382,0.2003322,111010.0,111000.0,5.081947]
[1747915309618,0.2003322,111010.0,111000.0,4.449267]
[1747915309843,0.2003322,111010.0,111000.0,4.813707]
[1747915310046,0.28987776,111010.0,111000.0,4.1155]
[1747915310253,0.28987776,111010.0,111000.0,3.4809]
[1747915310459,0.28987776,111010.0,111000.0,1.2852]
[1747915310666,0.28987776,111010.0,111000.0,2.4493]
[1747915310872,0.32197776,111010.0,111000.0,0.63652]
[1747915311074,0.35367776,111010.0,111000.0,0.63652]
[1747915311915,0.35367776,111010.0,111000.0,0.63452]
[1747915312123,0.35367776,111010.0,110980.0,0.35001063]
[1747915312124,0.19821547,110990.0,110980.0,0.35001063]
[1747915312301,0.19821547,110990.0,110980.0,5.082787]
[1747915312729,0.19821547,110990.0,110980.0,5.2720102]
[1747915313479,0.19821547,110990.0,110980.0,5.2760102]
[1747915314112,0.19821547,110990.0,110980.0,4.6414902]
[1747915314312,0.19821547,110990.0,110980.0,5.2759702]
[1747915314932,0.18920606,110990.0,110980.0,5.088747]
[1747915315558,0.18920606,110990.0,110980.0,5.27797028]
[1747915316156,0.18920606,110990.0,110980.0,5.2959913]
[1747915316407,0.18920606,110990.0,110980.0,5.28698083]
[1747915316611,0.18920606,110990.0,110980.0,5.33640119]
[1747915316612,0.01801906,110990.0,110980.0,5.33640119]
[1747915316817,0.02702879,110990.0,110980.0,5.33640119]
[1747915317652,0.18019451,111000.0,110990.0,0.52920606]
[1747915317653,0.19821243,111000.0,110990.0,0.52920606]
[1747915317853,0.20722111,111000.0,110990.0,4.64548263]
[1747915318055,0.20722111,111000.0,110990.0,4.68719212]
[1747915318944,0.0180176,111000.0,110990.0,4.69624153]
[1747915319147,0.0180176,111000.0,110990.0,4.69724153]
[1747915319345,0.02702596,111000.0,110990.0,4.69924153]
[1747915319547,0.01801712,111000.0,110990.0,4.70825078]
[1747915320004,0.20720614,111000.0,110990.0,4.66654153]
[1747915320249,0.1981977,111000.0,110990.0,4.90955306]
[1747915320428,0.27873458,111000.0,110990.0,4.30924]
[1747915321834,0.27873458,111000.0,110990.0,3.67484]
[1747915322035,0.27873458,111000.0,110990.0,4.30924]
[1747915323620,0.27873458,111000.0,110990.0,4.49844623]
[1747915324074,0.27873458,111000.0,110990.0,4.50745596]
[1747915324477,0.18918902,111000.0,110990.0,4.51646545]
[1747915325379,0.26972574,111000.0,110990.0,4.30924]
[1747915325584,0.38501115,111000.0,110990.0,0.3674]
[1747915325802,0.34776659,111000.0,110990.0,0.00304]
[1747915326008,0.34776659,111000.0,110990.0,0.63744]
[1747915326631,0.34776659,111000.0,110990.0,0.63544]
[1747915327047,0.34876659,111000.0,110990.0,0.63544]
[1747915327684,0.33422574,111000.0,110990.0,0.63544]
[1747915328102,0.30212574,111000.0,110990.0,0.63544]
[1747915328313,0.30212574,111000.0,110990.0,0.63444]
[1747915328529,0.33362574,111000.0,110990.0,0.63444]
[1747915328715,0.33562574,111000.0,110990.0,0.63444]
[1747915329370,0.30412574,111000.0,110990.0,0.63444]
[1747915330848,0.33462574,111000.0,110990.0,0.63448]
[1747915331309,0.34916659,111000.0,110990.0,0.3644]
[1747915331794,0.34916659,111000.0,110990.0,4e-05]
[1747915332004,0.34916659,111000.0,110990.0,0.63448]
[1747915332880,0.34816659,111000.0,110990.0,0.63448]
[1747915334555,0.34816659,111000.0,110990.0,0.27012]
[1747915334757,0.34816659,111000.0,110990.0,4e-05]
[1747915334948,0.34816659,111000.0,110990.0,0.27012]
[1747915334949,0.40207201,111000.0,110990.0,0.27012]
[1747915335403,0.34816659,111000.0,110990.0,0.27012]
[1747915335866,0.35016659,111000.0,110990.0,0.27012]
[1747915336122,0.61119874,111000.0,110990.0,4e-05]
[1747915336317,0.63639033,111000.0,110990.0,0.27012]
[1747915336745,0.37535818,111000.0,110990.0,0.27012]
[1747915336958,0.37535818,111000.0,110990.0,4e-05]
[1747915336959,0.71911812,111000.0,110990.0,4e-05]
[1747915337189,1.05911812,111000.0,110990.0,4e-05]
[1747915337419,0.26784691,110990.0,110980.0,0.001]
[1747915337642,0.38258406,110990.0,110980.0,0.001]
[1747915339141,0.38458406,110990.0,110980.0,0.001]
[1747915339348,0.38558406,110990.0,110980.0,0.001]
[1747915340334,0.36039247,110990.0,110980.0,0.001]
[1747915340561,0.44248877,110990.0,110980.0,0.001]
[1747915340778,0.36039247,110990.0,110980.0,0.001]
[1747915340983,0.38559181,110990.0,110980.0,0.001]
[1747915341222,0.36039247,110990.0,110980.0,0.001]
[1747915341382,0.36039247,110990.0,110980.0,0.27112]
[1747915341593,0.44248877,110990.0,110980.0,0.27112]
[1747915342118,0.44148877,110990.0,110980.0,0.27112]
[1747915342415,0.44448877,110990.0,110980.0,0.27112]
[1747915342633,0.44248877,110990.0,110980.0,0.27112]
[1747915343064,0.44648877,110990.0,110980.0,0.27112]
[1747915343266,0.44648877,110990.0,110980.0,0.001]
[1747915343876,0.36439247,110990.0,110980.0,0.001]
[1747915344249,0.36439247,110990.0,110980.0,0.27012]
[1747915344453,0.36439247,110990.0,110960.0,0.75304]
[1747915344454,0.21279205,110970.0,110960.0,0.75304]
[1747915344665,0.30233761,110970.0,110960.0,1.02316]
[1747915344817,0.30233761,110970.0,110960.0,5.130427]
[1747915345482,0.30233761,110970.0,110960.0,3.35046]
[1747915345685,0.30233761,110970.0,110960.0,3.18896]
[1747915346090,0.33343761,110970.0,110960.0,1.02316]
[1747915346360,0.36373761,110970.0,110960.0,0.39084]
[1747915346517,0.36373761,110970.0,110960.0,1.02316]
[1747915348386,0.33343761,110970.0,110960.0,1.02316]
[1747915349248,0.36353761,110970.0,110960.0,1.02316]
[1747915349652,0.36353761,110970.0,110960.0,0.39084]
[1747915349853,0.36353761,110970.0,110960.0,0.002]
[1747915349854,0.67894626,110970.0,110960.0,0.002]
[1747915350288,0.41791411,110970.0,110960.0,0.002]
[1747915350932,0.36353761,110970.0,110960.0,0.002]
[1747915351686,0.62456976,110970.0,110960.0,0.002]
[1747915353319,0.62756976,110970.0,110960.0,0.002]
[1747915353722,0.63156976,110970.0,110960.0,0.002]
[1747915355851,1.32226976,110970.0,110960.0,0.002]
[1747915356054,1.41179127,110970.0,110960.0,0.002]
[1747915356272,1.32226976,110970.0,110960.0,0.002]
[1747915356476,1.33084118,110970.0,110960.0,0.002]
[1747915356679,1.06980903,110970.0,110960.0,0.002]
[1747915357321,0.30336818,110970.0,110960.0,0.63444]
[1747915357532,0.30336818,110970.0,110960.0,0.66534]
[1747915357956,0.31790903,110970.0,110960.0,0.66534]
[1747915358195,0.30336818,110970.0,110960.0,0.66534]
[1747915358411,0.29179676,110970.0,110960.0,0.66534]
[1747915358814,0.29379676,110970.0,110960.0,0.66534]
[1747915359246,0.30833761,110970.0,110960.0,0.66534]
[1747915359467,0.29379676,110970.0,110960.0,4.804307]
[1747915359849,0.28478573,110970.0,110960.0,4.804307]
[1747915360056,0.28478573,110970.0,110960.0,4.98455213]
[1747915360280,0.09554556,110970.0,110960.0,5.00257639]
[1747915360507,0.13158961,110970.0,110960.0,5.0206]
[1747915360707,0.3078185,110970.0,110960.0,5.01158832]
[1747915360900,0.3098185,110970.0,110960.0,5.01158832]
[1747915361285,0.29880771,110970.0,110960.0,5.01158832]
[1747915361512,0.29880771,110970.0,110960.0,5.02060017]
[1747915361707,0.29880771,110970.0,110960.0,5.02160017]
[1747915361917,0.29680771,110970.0,110960.0,5.02160017]
[1747915362136,0.28779684,110970.0,110960.0,5.00357639]
[1747915362339,0.28779684,110970.0,110960.0,5.00457639]
[1747915362542,0.28759684,110970.0,110960.0,5.01358832]
[1747915363809,0.28759684,110970.0,110960.0,4.81531925]
[1747915364021,0.01802231,110970.0,110960.0,5.01358832]
[1747915364233,0.00901079,110970.0,110960.0,5.3626]
[1747915364442,0.02703277,110970.0,110960.0,5.3626]
[1747915365070,0.03604397,110970.0,110960.0,5.3626]
[1747915365277,0.01802166,110970.0,110960.0,5.3626]
[1747915365505,0.18019641,110990.0,110970.0,0.19825104]
[1747915365722,0.0180189,110990.0,110980.0,5.04598102]
[1747915365930,0.0180189,110990.0,110980.0,5.38598102]
[1747915366146,0.02702799,110990.0,110980.0,5.38598102]
[1747915366372,0.01801842,110990.0,110980.0,5.38598102]
[1747915366627,0.03603748,110990.0,110980.0,5.38598102]
[1747915367532,0.02702783,110990.0,110980.0,5.38598102]
[1747915367760,0.03603748,110990.0,110980.0,5.38598102]
[1747915368159,0.03603748,110990.0,110980.0,5.04598102]
[1747915368592,0.21623462,110990.0,110980.0,5.03697096]
[1747915369229,0.20722529,110990.0,110980.0,5.02896066]
[1747915369474,0.40722529,110990.0,110980.0,5.02896066]
[1747915369701,0.38920623,110990.0,110980.0,4.560567]
[1747915369917,0.47875179,110990.0,110980.0,3.421]
[1747915370130,0.47875179,110990.0,110980.0,4.05564]
[1747915370334,0.47875179,110990.0,110980.0,4.08754]
[1747915370541,0.38920623,110990.0,110980.0,4.08754]
[1747915371204,0.47875179,110990.0,110980.0,4.05564]
[1747915371406,0.47875179,110990.0,110980.0,4.02264]
[1747915371826,0.47875179,110990.0,110980.0,4.05584]
[1747915373076,0.47875179,110990.0,110980.0,3.388]
[1747915373304,0.47875179,110990.0,110980.0,1.02456]
[1747915373514,0.47875179,110990.0,110980.0,0.75448]
[1747915373698,0.47875179,110990.0,110980.0,1.02456]
[1747915373896,0.47875179,110990.0,110980.0,1.27456]
[1747915374105,0.55429264,110990.0,110980.0,1.27456]
[1747915374314,0.55429264,110990.0,110980.0,0.64]
[1747915374518,0.55429264,110990.0,110980.0,0.91008]
[1747915374724,0.55429264,110990.0,110980.0,0.64]
[1747915374926,0.52359264,110990.0,110980.0,0.91008]
[1747915375487,0.52359264,110990.0,110980.0,0.90908]
[1747915375991,0.52459264,110990.0,110980.0,0.90908]
[1747915376186,0.52559264,110990.0,110980.0,0.90908]
[1747915379770,0.49529264,110990.0,110980.0,0.90908]
[1747915379967,0.48075179,110990.0,110980.0,0.90908]
[1747915380173,0.48075179,110990.0,110980.0,1.39398]
[1747915380571,0.48075179,110990.0,110980.0,1.73398]
[1747915380814,0.48075179,110990.0,110980.0,1.94449265]
[1747915381144,0.48075179,110990.0,110980.0,1.76428]
[1747915383422,0.48075179,110990.0,110980.0,1.77329063]
[1747915383856,0.48075179,110990.0,110980.0,1.76428]
[1747915384054,0.30956495,110990.0,110980.0,1.91419265]
[1747915384267,0.22902799,110990.0,110980.0,1.9722234]
[1747915385439,0.23803756,110990.0,110980.0,1.9722234]
[1747915386537,0.23603756,110990.0,110980.0,1.9722234]
[1747915386745,0.20900909,110990.0,110980.0,1.9722234]
[1747915386966,0.21801834,110990.0,110980.0,1.9732234]
[1747915387200,0.23603732,110990.0,110980.0,1.9732234]
[1747915387405,0.23603724,110990.0,110980.0,1.9732234]
[1747915388264,0.40722545,110990.0,110980.0,2.31968312]
[1747915388673,0.39821596,110990.0,110980.0,2.31968312]
[1747915388898,0.39821596,110990.0,110980.0,2.29769383]
[1747915389317,0.38920623,110990.0,110980.0,2.09946]
[1747915389520,0.38920623,110990.0,110980.0,1.4343]
[1747915389725,0.38920623,110990.0,110980.0,2.06886]
[1747915389994,0.47875179,110990.0,110980.0,1.4343]
[1747915390218,0.47875179,110990.0,110980.0,1.79878]
[1747915390424,0.50965179,110990.0,110980.0,1.58866]
[1747915390857,0.54035179,110990.0,110980.0,0.88556]
[1747915391073,0.55489264,110990.0,110980.0,0.251]
[1747915391277,0.55489264,110990.0,110980.0,0.88556]
[1747915392213,0.55489264,110990.0,110980.0,0.88456]
[1747915392666,0.55589264,110990.0,110980.0,0.88456]
[1747915393048,0.49529264,110990.0,110980.0,3.93756]
[1747915393193,0.49529264,110990.0,110980.0,3.60516]
[1747915393394,0.49529264,110990.0,110980.0,2.60626]
[1747915393605,0.55819264,110990.0,110980.0,0.98966]
[1747915394199,0.55819264,110990.0,110980.0,0.88456]
[1747915394654,0.55819264,110990.0,110980.0,0.71172849]
[1747915395082,0.52699264,110990.0,110980.0,0.71172849]
[1747915395668,0.55819264,110990.0,110980.0,0.71172849]
[1747915396970,0.58554612,110990.0,110980.0,0.71172849]
[1747915397210,0.58554612,110990.0,110980.0,0.34724849]
[1747915397586,0.55819264,110990.0,110980.0,0.34724849]
[1747915398216,0.55819264,110990.0,110980.0,0.07716849]
[1747915398656,0.55819264,110990.0,110980.0,0.34724849]
[1747915398860,0.54365179,110990.0,110980.0,0.34724849]
[1747915399062,0.55819264,110990.0,110980.0,0.34724849]
[1747915399215,0.63361106,110990.0,110980.0,0.34724849]
[1747915399871,0.55819264,110990.0,110980.0,0.34724849]
[1747915400496,0.55819264,110990.0,110980.0,0.70892849]
[1747915401346,0.55819264,110990.0,110980.0,0.34724849]
[1747915402426,0.55819264,110990.0,110980.0,0.07716849]
[1747915402606,0.52699264,110990.0,110980.0,0.70892849]
[1747915402841,0.51245179,110990.0,110980.0,0.70892849]
[1747915403049,0.48075179,110990.0,110980.0,0.70892849]
[1747915403879,0.18922312,110980.0,110970.0,0.18578063]
[1747915404020,0.27876868,110980.0,110970.0,4.65472763]
[1747915404232,0.27876868,110980.0,110970.0,4.99472763]
[1747915404647,0.27876868,110980.0,110970.0,5.20705652]
[1747915404848,0.27876868,110980.0,110970.0,5.02682763]
[1747915405069,0.27876868,110980.0,110970.0,5.29694763]
[1747915405474,0.27876868,110980.0,110970.0,5.47717652]
[1747915405646,0.27876868,110980.0,110970.0,5.29694763]
[1747915406085,0.27876868,110980.0,110970.0,5.29794763]
[1747915406330,0.27876868,110980.0,110970.0,5.26584763]
[1747915406643,0.31066868,110980.0,110970.0,0.97858063]
[1747915406794,0.34326868,110980.0,110970.0,1.27038063]
[1747915406976,0.34276868,110980.0,110970.0,1.27038063]
[1747915407191,0.34276868,110980.0,110970.0,1.25188063]
[1747915407392,0.34276868,110980.0,110970.0,1.20708063]
[1747915407799,0.35730953,110980.0,110970.0,0.57528063]
[1747915408009,0.35730953,110980.0,110970.0,1.20708063]
[1747915408429,0.35730953,110980.0,110970.0,0.78608063]
[1747915408626,0.32470953,110980.0,110970.0,4.89334763]
[1747915409089,0.29280953,110980.0,110970.0,4.89334763]
[1747915410485,0.26380953,110980.0,110970.0,4.89334763]
[1747915411300,0.27282,110980.0,110970.0,4.89334763]
[1747915411710,0.27282,110980.0,110970.0,1.86288063]
[1747915411924,0.33802,110980.0,110970.0,1.30508063]
[1747915412445,0.27282,110980.0,110970.0,1.33748063]
[1747915412803,0.25827915,110980.0,110970.0,1.33748063]
[1747915416021,0.25827915,110980.0,110970.0,1.30508063]
[1747915416845,0.25827915,110980.0,110970.0,1.33618063]
[1747915417053,0.25827915,110980.0,110970.0,1.30508063]
[1747915418317,0.25827915,110980.0,110970.0,0.15428063]
[1747915418535,0.39986756,110980.0,110970.0,0.15428063]
[1747915418771,0.33602,110980.0,110970.0,0.42440063]
[1747915418993,0.59705215,110980.0,110970.0,0.42440063]
[1747915419230,0.59705215,110980.0,110970.0,0.15428063]
[1747915419454,0.59705215,110980.0,110970.0,0.42440063]
[1747915419669,0.42182504,110980.0,110970.0,0.42440063]
[1747915420091,0.42182504,110980.0,110970.0,0.42340063]
[1747915420314,0.42182504,110980.0,110970.0,0.15328063]
[1747915420529,0.68385719,110980.0,110970.0,0.15328063]
[1747915421432,1.02385719,110980.0,110970.0,0.15328063]
[1747915421875,1.04910678,110980.0,110970.0,0.15328063]
[1747915422751,1.05010678,110980.0,110970.0,0.15328063]
[1747915423332,1.06952254,110980.0,110970.0,0.15328063]
[1747915423739,1.07252254,110980.0,110970.0,0.15328063]
[1747915424118,1.34264254,110980.0,110970.0,0.15328063]
[1747915424720,1.34264254,110980.0,110970.0,0.15332063]
[1747915425155,1.63185579,110980.0,110970.0,0.15332063]
[1747915427530,1.65185579,110980.0,110970.0,0.15332063]
[1747915427780,1.64185579,110980.0,110970.0,0.15332063]
[1747915427999,1.65889779,110980.0,110970.0,0.05920558]
[1747915428215,1.67325347,110980.0,110970.0,0.05920558]
[1747915428438,1.67325347,110980.0,110960.0,0.002]
[1747915428439,0.61498102,110970.0,110960.0,0.002]
[1747915428667,1.66643239,110970.0,110960.0,0.002]
[1747915428882,1.69168198,110970.0,110960.0,0.002]
[1747915429108,1.70031099,110970.0,110960.0,0.002]
[1747915429325,1.10196237,110960.0,110950.0,0.25004]
[1747915429541,1.48691752,110960.0,110950.0,0.25004]
[1747915429787,1.57643903,110960.0,110950.0,0.25004]
[1747915430292,1.72080023,110960.0,110950.0,0.25004]
[1747915430495,1.72080023,110960.0,110950.0,0.21884]
[1747915430900,1.72942924,110960.0,110950.0,0.21884]
[1747915431106,1.72946924,110960.0,110950.0,0.21884]
[1747915431553,1.82426924,110960.0,110950.0,0.21884]
[1747915431778,1.70421965,110960.0,110950.0,0.21884]
[1747915432006,1.43401965,110960.0,110950.0,0.21884]
[1747915432224,1.70421965,110960.0,110950.0,0.21884]
[1747915432442,1.71995189,110960.0,110950.0,0.21984]
[1747915432667,1.73158078,110960.0,110950.0,0.21884]
[1747915432900,1.75862878,110960.0,110950.0,0.17071951]
[1747915433122,1.75862878,110960.0,110950.0,0.12665933]
[1747915433334,1.75862878,110960.0,110950.0,0.08259915]
[1747915433335,1.76262878,110960.0,110950.0,0.08259915]
[1747915433977,1.76262878,110960.0,110950.0,0.04506019]
[1747915434264,1.76262878,110960.0,110950.0,1e-08]
[1747915435365,0.53634727,110950.0,110940.0,0.002]
[1747915435568,1.07585434,110950.0,110940.0,0.002]
[1747915436399,1.41585434,110950.0,110940.0,0.002]
[1747915436604,1.41885434,110950.0,110940.0,0.002]
[1747915437173,1.42085434,110950.0,110940.0,0.003]
[1747915437828,1.42948335,110950.0,110940.0,0.003]
[1747915438048,0.2128993,110910.0,110900.0,0.08453268]
[1747915438255,0.20391754,110890.0,110880.0,1.21222157]
[1747915438465,0.2934631,110890.0,110880.0,1.49002157]
[1747915438881,0.2934631,110890.0,110880.0,1.35642157]
[1747915439296,0.2934631,110890.0,110880.0,1.21222157]
[1747915439494,0.29351375,110890.0,110880.0,0.93072157]
[1747915439704,0.29351375,110890.0,110880.0,0.82322157]
[1747915440133,0.29351375,110890.0,110880.0,0.82326157]
[1747915440333,0.29451375,110890.0,110880.0,0.82726157]
[1747915440536,0.29451375,110890.0,110880.0,0.55698157]
[1747915440748,0.29451375,110890.0,110880.0,0.82726157]
[1747915440968,0.29551375,110890.0,110880.0,0.83426157]
[1747915441392,0.34195461,110890.0,110880.0,0.20350157]
[1747915442021,0.30302655,110890.0,110880.0,0.20350157]
[1747915442431,0.50302655,110890.0,110880.0,0.20350157]
[1747915442857,0.50202655,110890.0,110880.0,0.19950157]
[1747915443016,0.50202655,110890.0,110880.0,0.19550157]
[1747915443424,1.1660587,110890.0,110880.0,0.19250157]
[1747915443627,1.25558021,110890.0,110880.0,0.19550157]
[1747915443855,1.25558021,110890.0,110880.0,0.19650157]
[1747915443856,1.62710021,110890.0,110880.0,0.19650157]
[1747915444054,1.63710021,110890.0,110880.0,0.043]
[1747915444283,0.61697085,110870.0,110860.0,0.252]
[1747915444416,1.32860458,110870.0,110860.0,0.252]
[1747915444626,1.68912458,110870.0,110860.0,0.24794071]
[1747915445059,1.42809243,110870.0,110860.0,0.18557071]
[1747915445227,1.73912458,110870.0,110860.0,0.16017071]
[1747915445455,1.73912458,110870.0,110860.0,0.14687806]
[1747915445868,0.76651641,110870.0,110860.0,0.14687806]
[1747915446276,0.35251641,110870.0,110860.0,0.14687806]
[1747915446481,0.35651641,110870.0,110860.0,0.14787806]
[1747915446694,0.34197556,110870.0,110860.0,0.14787806]
[1747915446922,0.29197556,110870.0,110860.0,0.21187806]
[1747915447122,0.29597556,110870.0,110860.0,0.85615806]
[1747915447529,0.28797556,110870.0,110860.0,0.85515806]
[1747915447946,0.28997556,110870.0,110860.0,0.14687806]
[1747915448156,0.30851641,110870.0,110860.0,0.14787806]
[1747915449276,0.37291641,110870.0,110860.0,0.14787806]
[1747915449678,0.63394856,110870.0,110860.0,0.14787806]
[1747915450276,0.37291641,110870.0,110860.0,0.14787806]
[1747915450888,0.97394856,110870.0,110860.0,0.14787806]
[1747915451514,0.98251118,110870.0,110860.0,0.14787806]
[1747915451712,0.81100054,110870.0,110860.0,0.14787806]
[1747915452271,0.72147903,110870.0,110860.0,0.14787806]
[1747915452902,0.64851641,110870.0,110860.0,0.14787806]
[1747915453421,0.84851641,110870.0,110860.0,0.14787806]
[1747915454213,0.50851641,110870.0,110860.0,0.44947806]
[1747915455186,0.50851641,110870.0,110860.0,0.48017806]
[1747915455600,0.57740699,110870.0,110860.0,0.41827806]
[1747915457623,0.50851641,110870.0,110860.0,0.41827806]
[1747915461796,0.50851641,110870.0,110860.0,0.48357806]
[1747915461999,0.49397556,110870.0,110860.0,0.85761806]
[1747915462778,0.49197556,110870.0,110860.0,0.85761806]
[1747915463114,0.49297556,110870.0,110860.0,0.85861806]
[1747915463515,0.48897556,110870.0,110860.0,0.85761806]
[1747915464056,0.48997556,110870.0,110860.0,0.85761806]
[1747915465454,0.48997556,110870.0,110860.0,4.96488506]
[1747915465872,0.49899505,110870.0,110860.0,5.49431316]
[1747915466123,0.48997589,110870.0,110860.0,5.50333346]
[1747915466786,0.48897589,110870.0,110860.0,5.31390544]
[1747915466958,0.48897589,110870.0,110860.0,5.30488506]
[1747915466959,0.47995649,110870.0,110860.0,5.30488506]
[1747915467194,0.48095649,110870.0,110860.0,5.30788506]
[1747915467411,0.48095649,110870.0,110860.0,5.48829278]
[1747915467832,0.48095649,110870.0,110860.0,5.30788506]
[1747915468042,0.48095649,110870.0,110860.0,3.80331806]
[1747915468220,0.47995649,110870.0,110860.0,3.80231806]
[1747915468426,0.48095649,110870.0,110860.0,3.80531806]
[1747915469810,0.48095649,110870.0,110860.0,1.65451806]
[1747915470016,0.48095649,110870.0,110860.0,1.62811806]
[1747915471229,0.48095649,110870.0,110860.0,0.86417806]
[1747915471431,0.48095649,110870.0,110860.0,1.23817806]
[1747915471636,0.48095649,110870.0,110860.0,1.20257806]
[1747915475805,0.48095649,110870.0,110860.0,0.93217806]
[1747915476009,0.48095649,110870.0,110860.0,0.55817806]
[1747915476364,0.48095649,110870.0,110860.0,1.13723806]
[1747915477539,0.48095649,110870.0,110860.0,0.55747806]
[1747915477755,0.48095649,110870.0,110860.0,5.31106506]
[1747915480269,0.202,110870.0,110860.0,5.51853295]
[1747915480474,0.40042952,110870.0,110860.0,5.50951314]
[1747915480742,0.41846841,110870.0,110860.0,5.51853327]
[1747915480928,0.2380768,110870.0,110860.0,5.52755308]
[1747915483127,0.0380768,110870.0,110860.0,5.52755308]
[1747915483810,0.04709629,110870.0,110860.0,5.52755308]
[1747915484702,0.0290574,110870.0,110860.0,5.52755308]
[1747915484902,0.0380768,110870.0,110860.0,5.52755308]
[1747915485538,0.22748773,110870.0,110860.0,5.52755308]
[1747915486012,0.21846881,110870.0,110860.0,5.51849344]
[1747915486250,0.21846881,110870.0,110860.0,5.5365333]
[1747915486635,0.22748838,110870.0,110860.0,5.5365333]
[1747915487075,0.04709694,110870.0,110860.0,5.53653281]
[1747915487443,0.02003808,110870.0,110860.0,5.53653281]
[1747915487886,0.02905748,110870.0,110860.0,5.53653281]
[1747915488598,0.002,110870.0,110860.0,5.53653281]
[1747915488810,0.02003784,110870.0,110860.0,5.53653281]
[1747915489036,0.20044504,110890.0,110880.0,0.59219385]
[1747915489253,0.20044504,110890.0,110880.0,4.96982085]
[1747915489477,0.20044504,110890.0,110880.0,4.97883944]
[1747915489692,0.20044504,110890.0,110880.0,4.98785795]
[1747915489869,0.20044504,110890.0,110880.0,4.96982085]
[1747915490637,0.20044504,110890.0,110880.0,4.97883944]
[1747915490928,0.19142734,110890.0,110880.0,4.96982085]
[1747915491143,0.19242734,110890.0,110880.0,4.97182085]
[1747915492507,0.19242734,110890.0,110880.0,4.98985746]
[1747915492508,0.00305065,110890.0,110880.0,4.98985746]
[1747915492723,0.01101583,110910.0,110900.0,0.27229306]
[1747915492916,0.002,110910.0,110900.0,5.41546819]
[1747915493315,0.002,110910.0,110900.0,5.75546819]
[1747915493519,0.00862414,110920.0,110910.0,0.20737436]
[1747915493729,0.01763891,110920.0,110910.0,4.38735467]
[1747915494004,0.03566886,110920.0,110910.0,4.38735467]
[1747915494411,0.02665384,110920.0,110910.0,4.38735467]
[1747915494627,0.00862414,110920.0,110910.0,4.38735467]
[1747915494836,0.20032284,110930.0,110920.0,0.59894089]
[1747915495056,0.20933753,110930.0,110920.0,4.97652789]
[1747915495274,0.21835149,110930.0,110920.0,4.96751263]
[1747915495519,0.20032301,110930.0,110920.0,4.95849713]
[1747915495735,0.20032301,110930.0,110920.0,4.167867]
[1747915495962,0.20032301,110930.0,110920.0,4.62751263]
[1747915496400,0.20032301,110930.0,110920.0,4.63652805]
[1747915496620,0.20132301,110930.0,110920.0,4.63652805]
[1747915496842,0.19230856,110930.0,110920.0,4.438187]
[1747915497108,0.19230856,110930.0,110920.0,4.62751247]
[1747915497330,0.19330856,110930.0,110920.0,4.62751247]
[1747915497549,0.19330856,110930.0,110920.0,4.62751263]
[1747915497769,0.19230856,110930.0,110920.0,4.63652805]
[1747915498198,0.19130856,110930.0,110920.0,4.63752805]
[1747915498845,0.20933746,110930.0,110920.0,4.64654323]
[1747915499051,0.02904228,110930.0,110920.0,4.65559816]
[1747915499265,0.020028,110930.0,110920.0,4.65559816]
[1747915499488,0.002,110930.0,110920.0,4.65559816]
[1747915499704,0.20028748,110950.0,110940.0,0.26270513]
[1747915499910,0.20028748,110950.0,110940.0,5.0069985]
[1747915500117,0.20028748,110950.0,110940.0,5.01601221]
[1747915500431,0.20028748,110950.0,110940.0,4.817707]
[1747915500643,0.19127474,110950.0,110940.0,4.817707]
[1747915501022,0.19127474,110950.0,110940.0,4.78495931]
[1747915502098,0.19127474,110950.0,110940.0,4.78499931]
[1747915502569,0.19127474,110950.0,110940.0,4.78699931]
[1747915503153,0.19127474,110950.0,110940.0,4.97629081]
[1747915503377,0.19127474,110950.0,110940.0,4.99121207]
[1747915503597,0.19127474,110950.0,110940.0,5.02131207]
[1747915503802,0.19127474,110950.0,110940.0,4.83202057]
[1747915504011,0.19127474,110950.0,110940.0,5.11042057]
[1747915504415,0.2808203,110950.0,110940.0,4.46438057]
[1747915504632,0.3137203,110950.0,110940.0,0.79911357]
[1747915504829,0.3456203,110950.0,110940.0,1.00307357]
[1747915508426,0.36016115,110950.0,110940.0,0.65495357]
[1747915508610,0.20733721,110930.0,110920.0,0.18932408]
[1747915508811,0.20733721,110930.0,110920.0,4.66473921]
[1747915509084,0.19832301,110930.0,110920.0,4.47541513]
[1747915509293,0.19832301,110930.0,110920.0,4.65572526]
[1747915509500,0.19832301,110930.0,110920.0,4.66474076]
[1747915509885,0.19832301,110930.0,110920.0,4.93494076]
[1747915510063,0.19832301,110930.0,110920.0,4.30611618]